bitfinex/quotes_SOLUSD_20230401
["timestamp","ask_amount","ask_price","bid_price","bid_amount"]
[1680334480844,10.0,21.049,21.036,17.0]
[1680334482254,10.0,21.049,21.037,10.0]
[1680334483333,28.47509873,21.05,21.037,10.0]
[1680334487247,28.47509873,21.05,21.039,10.0]
[1680334497849,21.33,21.05,21.04,17.0]
[1680334498249,21.33,21.05,21.041,10.0]
[1680334498449,21.33,21.05,21.042,17.0]
[1680334498649,21.33,21.05,21.043,10.0]
[1680334502658,109.09619873,21.054,21.045,10.0]
[1680334502964,20.0,21.053,21.046,17.0]
[1680334505857,20.0,21.053,21.045,10.0]
[1680334506057,20.0,21.053,21.046,17.0]
[1680334508552,20.0,21.053,21.043,10.0]
[1680334508764,20.0,21.053,21.044,17.0]
[1680334511370,20.0,21.053,21.043,10.0]
[1680334511770,20.0,21.053,21.044,17.0]
[1680334511977,20.0,21.053,21.043,10.0]
[1680334512173,21.5,21.05,21.043,10.0]
[1680334512366,21.5,21.05,21.041,10.0]
[1680334512568,21.5,21.05,21.042,17.0]
[1680334516465,21.5,21.05,21.032,121.7715]
[1680334516672,10.0,21.049,21.034,117.8966]
[1680334516973,28.64509873,21.05,21.035,10.0]
[1680334517172,21.5,21.05,21.035,10.0]
[1680334517873,21.5,21.05,21.037,10.0]
[1680334518068,21.5,21.05,21.038,17.0]
[1680334518269,21.5,21.05,21.039,10.0]
[1680334518567,21.5,21.05,21.041,10.0]
[1680334518961,21.5,21.05,21.043,10.0]
[1680334519161,21.5,21.05,21.044,17.0]
[1680334524277,21.5,21.05,21.043,10.0]
[1680334524479,21.5,21.05,21.044,17.0]
[1680334526881,21.5,21.05,21.043,10.0]
[1680334527084,20.0,21.053,21.043,10.0]
[1680334528981,27.14509873,21.053,21.043,10.0]
[1680334531781,27.14509873,21.053,21.045,10.0]
[1680334538069,20.0,21.053,21.045,10.0]
[1680334539489,20.0,21.053,21.044,17.0]
[1680334556502,27.14509873,21.053,21.044,17.0]
[1680334561804,20.0,21.053,21.044,17.0]
[1680334567511,7.14509873,21.056,21.044,17.0]
[1680334567722,33.03731905,21.058,21.044,17.0]
[1680334567906,33.03731905,21.058,21.045,10.0]
[1680334568106,33.03731905,21.058,21.046,17.0]
[1680334568407,21.5,21.06,21.046,17.0]
[1680334569009,21.5,21.06,21.047,10.0]
[1680334569208,21.5,21.06,21.049,10.0]
[1680334569408,21.5,21.06,21.05,17.0]
[1680334569608,21.5,21.06,21.051,10.0]
[1680334569796,21.5,21.06,21.052,17.0]
[1680334570213,21.5,21.06,21.051,10.0]
[1680334570623,21.5,21.06,21.052,17.0]
[1680334572728,21.5,21.06,21.051,10.0]
[1680334573132,21.5,21.06,21.052,17.0]
[1680334583236,19.009457,21.064,21.052,17.0]
[1680334585734,14.33622564,21.065,21.052,17.0]
[1680334585935,23.84089262,21.068,21.052,17.0]
[1680334586526,23.84089262,21.068,21.053,10.0]
[1680334586727,23.84089262,21.068,21.054,17.0]
[1680334587022,23.84089262,21.068,21.055,10.0]
[1680334587239,23.84089262,21.068,21.057,10.0]
[1680334587419,23.95239048,21.067,21.057,10.0]
[1680334588436,13.95239048,21.067,21.057,10.0]
[1680334588635,10.0,21.065,21.048,10.0]
[1680334588826,21.33,21.06,21.048,10.0]
[1680334589939,21.33,21.06,21.05,17.0]
[1680334612850,21.33,21.06,21.051,17.0]
[1680334613040,21.33,21.06,21.049,17.0]
[1680334615259,14.40222107,21.069,21.05,41.52]
[1680334615459,21.5,21.07,21.052,10.0]
[1680334615759,35.71620234,21.07,21.052,10.0]
[1680334615948,35.71620234,21.07,21.053,17.0]
[1680334616463,35.71620234,21.07,21.054,10.0]
[1680334616649,35.71620234,21.07,21.056,10.0]
[1680334616851,35.71620234,21.07,21.057,17.0]
[1680334617049,35.71620234,21.07,21.058,10.0]
[1680334617258,35.71620234,21.07,21.059,17.0]
[1680334617863,35.71620234,21.07,21.058,10.0]
[1680334618061,35.71620234,21.07,21.059,17.0]
[1680334618758,35.71620234,21.07,21.056,10.0]
[1680334618961,35.71620234,21.07,21.054,121.7345]
[1680334619167,10.0,21.069,21.054,121.7345]
[1680334620362,10.0,21.069,21.056,10.0]
[1680334622248,10.0,21.069,21.057,17.0]
[1680334622655,42.86130107,21.07,21.057,17.0]
[1680334622957,21.5,21.07,21.058,10.0]
[1680334623151,21.5,21.07,21.059,17.0]
[1680334630369,21.5,21.07,21.06,10.0]
[1680334630567,21.5,21.07,21.061,17.0]
[1680334668085,97.7359,21.076,21.062,20.0]
[1680334668286,21.5,21.08,21.063,17.0]
[1680334668698,21.5,21.08,21.064,10.0]
[1680334668898,21.5,21.08,21.065,17.0]
[1680334669100,21.5,21.08,21.066,10.0]
[1680334669296,21.5,21.08,21.068,10.0]
[1680334669502,21.5,21.08,21.069,17.0]
[1680334669906,10.0,21.079,21.066,10.0]
[1680334670090,10.0,21.079,21.067,17.0]
[1680334671693,21.5,21.08,21.068,10.0]
[1680334671894,21.5,21.08,21.069,17.0]
[1680334672906,21.5,21.08,21.068,10.0]
[1680334673107,21.5,21.08,21.069,17.0]
[1680334673507,21.5,21.08,21.068,10.0]
[1680334673804,10.0,21.079,21.068,10.0]
[1680334674611,10.0,21.079,21.068,9.93023962]
[1680334675812,10.0,21.079,21.066,10.0]
[1680334675997,10.0,21.079,21.068,10.0]
[1680334680615,21.5,21.08,21.068,10.0]
[1680334689218,21.5,21.08,21.069,17.0]
[1680334689418,21.5,21.08,21.07,10.0]
[1680334694136,21.5,21.08,21.068,10.0]
[1680334694318,21.5,21.08,21.069,17.0]
[1680334694834,21.5,21.08,21.07,10.0]
[1680334696120,21.5,21.08,21.067,10.0]
[1680334696320,10.0,21.079,21.066,24.03251096]
[1680334696522,10.0,21.079,21.068,10.0]
[1680334698636,10.0,21.079,21.067,17.0]
[1680334698932,10.0,21.079,21.065,114.0053]
[1680334699230,10.0,21.079,21.063,126.78835208]
[1680334699437,21.5,21.07,21.055,34.24051025]
[1680334699636,21.5,21.07,21.055,15.24351025]
[1680334700217,21.5,21.07,21.055,10.0]
[1680334701322,21.5,21.07,21.059,17.0]
[1680334701523,10.0,21.069,21.055,10.0]
[1680334704241,21.5,21.07,21.055,10.0]
[1680334709148,21.5,21.07,21.058,10.0]
[1680334722459,10.0,21.069,21.056,10.0]
[1680334722664,10.0,21.069,21.057,17.0]
[1680334723063,21.5,21.07,21.058,10.0]
[1680334723262,21.5,21.07,21.059,17.0]
[1680334724471,21.5,21.07,21.06,10.0]
[1680334724765,21.5,21.07,21.061,17.0]
[1680334736584,21.5,21.07,21.058,10.0]
[1680334737780,21.5,21.07,21.059,17.0]
[1680334738373,21.5,21.07,21.06,10.0]
[1680334738568,21.5,21.07,21.061,17.0]
[1680334738782,21.5,21.07,21.062,10.0]
[1680334738984,21.5,21.07,21.063,17.0]
[1680334742290,17.14509873,21.079,21.063,17.0]
[1680334742499,21.5,21.08,21.063,17.0]
[1680334743093,21.5,21.08,21.064,10.0]
[1680334743393,21.5,21.08,21.066,10.0]
[1680334743591,21.5,21.08,21.067,17.0]
[1680334743893,21.5,21.08,21.068,10.0]
[1680334744078,21.5,21.08,21.069,17.0]
[1680334745493,21.5,21.08,21.068,10.0]
[1680334745695,21.5,21.08,21.069,17.0]
[1680334745897,21.5,21.08,21.07,10.0]
[1680334747392,21.5,21.08,21.071,17.0]
[1680334747780,21.5,21.08,21.072,10.0]
[1680334747988,21.5,21.08,21.073,17.0]
[1680334748385,21.5,21.08,21.074,10.0]
[1680334748696,21.5,21.08,21.075,17.0]
[1680334750793,100.6904,21.087,21.076,10.0]
[1680334750988,20.0,21.086,21.077,17.0]
[1680334753297,20.0,21.086,21.076,10.0]
[1680334753489,20.0,21.086,21.074,10.0]
[1680334753685,21.5,21.08,21.066,14.71581924]
[1680334753893,10.0,21.079,21.066,14.71581924]
[1680334754093,10.0,21.079,21.066,10.0]
[1680334755397,10.0,21.079,21.069,17.0]
[1680334761097,10.0,21.079,21.068,126.48185594]
[1680334761397,10.0,21.079,21.07,10.0]
[1680334763105,10.0,21.079,21.069,27.0]
[1680334763602,26.81,21.08,21.069,27.0]
[1680334764003,26.81,21.08,21.07,10.0]
[1680334765227,26.81,21.08,21.069,27.0]
[1680334765518,26.81,21.08,21.068,112.3995]
[1680334765695,26.81,21.08,21.062,10.0]
[1680334765696,10.0,21.079,21.062,10.0]
[1680334766001,10.0,21.079,21.066,17.0]
[1680334771314,10.0,21.079,21.066,10.0]
[1680334771612,10.0,21.079,21.067,17.0]
[1680334772222,10.0,21.079,21.066,10.0]
[1680334772599,10.0,21.077,21.065,117.7707]
[1680334778412,10.0,21.077,21.059,117.8016]
[1680334778413,17.0,21.076,21.059,117.8016]
[1680334778621,10.0,21.069,21.059,117.8016]
[1680334787725,26.79,21.07,21.059,117.8016]
[1680334796628,40.93788184,21.07,21.059,117.8016]
[1680334800909,26.79,21.07,21.06,17.0]
[1680334801115,26.79,21.078,21.061,20.0]
[1680334801314,26.79,21.078,21.063,10.0]
[1680334801518,26.79,21.078,21.064,17.0]
[1680334802134,26.79,21.078,21.065,10.0]
[1680334802329,26.79,21.078,21.066,17.0]
[1680334802729,26.79,21.078,21.067,10.0]
[1680334802922,26.79,21.078,21.068,17.0]
[1680334803432,26.79,21.078,21.069,10.0]
[1680334805431,77.35407629,21.08,21.069,10.0]
[1680334806133,50.54407629,21.08,21.069,10.0]
[1680334808628,26.81,21.08,21.069,10.0]
[1680334810134,26.81,21.08,21.068,17.0]
[1680334818837,50.95186855,21.08,21.068,17.0]
[1680334822223,10.0,21.079,21.068,17.0]
[1680334822620,10.0,21.079,21.061,30.0]
[1680334822843,21.3,21.07,21.059,117.8016]
[1680334823144,21.3,21.07,21.06,10.0]
[1680334824224,21.3,21.07,21.062,10.0]
[1680334824422,21.3,21.07,21.063,17.0]
[1680334827547,10.0,21.077,21.061,17.0]
[1680334827725,10.0,21.075,21.061,17.0]
[1680334827925,20.0,21.074,21.061,17.0]
[1680334828127,10.0,21.073,21.061,17.0]
[1680334828322,20.0,21.072,21.061,17.0]
[1680334829243,20.0,21.072,21.059,117.8016]
[1680334829441,10.0,21.069,21.059,117.8016]
[1680334830340,26.62,21.07,21.06,10.0]
[1680334831650,26.62,21.07,21.059,117.8016]
[1680334833631,72.434,21.07,21.054,111.7345]
[1680334833832,17.0,21.069,21.054,111.7345]
[1680334834033,10.0,21.068,21.054,111.7345]
[1680334834235,26.83,21.06,21.054,111.7345]
[1680334839860,26.83,21.06,21.05,119.5125]
[1680334840060,26.83,21.06,21.048,18.996084]
[1680334840249,26.83,21.06,21.05,10.0]
[1680334843354,10.0,21.068,21.051,17.0]
[1680334843554,20.0,21.067,21.051,17.0]
[1680334843760,10.0,21.066,21.052,10.0]
[1680334843939,20.0,21.065,21.05,10.0]
[1680334844144,10.0,21.064,21.05,10.0]
[1680334844453,20.0,21.063,21.05,10.0]
[1680334844661,10.0,21.062,21.05,10.0]
[1680334847158,10.0,21.059,21.05,10.0]
[1680334847560,10.0,21.059,21.049,10.0]
[1680334848256,10.0,21.059,21.045,10.0]
[1680334848562,10.0,21.059,21.048,17.0]
[1680334848946,26.83,21.06,21.048,17.0]
[1680334850357,10.0,21.059,21.048,17.0]
[1680334851156,10.0,21.059,21.046,10.0]
[1680334852855,26.83,21.06,21.048,17.0]
[1680334853079,20.0,21.063,21.048,17.0]
[1680334853662,20.0,21.063,21.049,10.0]
[1680334853862,20.0,21.063,21.05,17.0]
[1680334854074,20.0,21.063,21.051,10.0]
[1680334858371,20.0,21.063,21.049,10.0]
[1680334858551,10.0,21.062,21.05,17.0]
[1680334860668,10.0,21.062,21.044,118.9705]
[1680334860882,53.45,21.06,21.044,118.9705]
[1680334861050,27.0,21.059,21.044,118.9705]
[1680334861470,10.0,21.058,21.045,10.0]
[1680334861953,10.0,21.058,21.044,128.9705]
[1680334864270,10.0,21.058,21.045,10.0]
[1680334879298,10.0,21.059,21.045,10.0]
[1680334879512,10.0,21.059,21.047,10.0]
[1680334879814,53.45,21.06,21.048,17.0]
[1680334879995,26.83,21.06,21.048,17.0]
[1680334880186,26.83,21.06,21.049,10.0]
[1680334880393,26.83,21.06,21.05,17.0]
[1680334880601,26.83,21.06,21.051,10.0]
[1680334884604,26.83,21.06,21.05,17.0]
[1680334885404,26.83,21.06,21.047,10.0]
[1680334885613,10.0,21.059,21.045,10.0]
[1680334885797,10.0,21.059,21.046,17.0]
[1680334886114,10.0,21.059,21.047,10.0]
[1680334894824,10.0,21.059,21.046,17.0]
[1680334896021,10.0,21.059,21.045,10.0]
[1680334897601,10.0,21.059,21.044,118.9705]
[1680334897821,10.0,21.057,21.044,118.9705]
[1680334900127,10.0,21.057,21.045,10.0]
[1680334902321,10.0,21.057,21.044,128.9705]
[1680334903030,10.0,21.057,21.045,10.0]
[1680334903322,10.0,21.059,21.045,10.0]
[1680334903518,53.66,21.06,21.046,17.0]
[1680334903725,26.83,21.06,21.046,17.0]
[1680334904133,26.83,21.06,21.047,10.0]
[1680334904422,26.83,21.06,21.048,17.0]
[1680334904632,26.83,21.06,21.049,10.0]
[1680334904814,26.83,21.06,21.05,17.0]
[1680334907431,26.83,21.06,21.049,10.0]
[1680334907628,26.83,21.06,21.046,10.0]
[1680334907824,10.0,21.058,21.046,10.0]
[1680334913232,10.0,21.058,21.044,118.9705]
[1680334915436,10.0,21.056,21.042,14.13265561]
[1680334915633,17.0,21.055,21.042,14.13265561]
[1680334915821,10.0,21.054,21.042,14.13265561]
[1680334916022,17.0,21.053,21.042,14.13265561]
[1680334916927,17.0,21.053,21.037,112.3098]
[1680334917235,17.0,21.053,21.038,47.65]
[1680334917434,17.0,21.053,21.038,23.43943872]
[1680334918341,17.0,21.053,21.041,14.33144003]
[1680334922825,17.0,21.053,21.044,10.0]
[1680334923222,17.0,21.055,21.044,10.0]
[1680334923827,17.0,21.055,21.041,14.33144003]
[1680334924028,26.7,21.05,21.043,113.7966]
[1680334924225,26.7,21.05,21.037,112.3098]
[1680334924541,17.0,21.049,21.038,10.0]
[1680334926247,10.0,21.048,21.035,10.0]
[1680334926433,17.0,21.047,21.035,10.0]
[1680334926628,26.7,21.05,21.035,10.0]
[1680334927033,53.53,21.05,21.035,24.3825659]
[1680334927741,53.53,21.05,21.037,10.0]
[1680334936955,26.83,21.05,21.037,10.0]
[1680334943848,26.83,21.05,21.038,17.0]
[1680334944044,26.83,21.05,21.039,10.0]
[1680334950461,26.83,21.06,21.04,17.0]
[1680334952063,19.005447,21.068,21.048,17.0]
[1680334952364,19.005447,21.068,21.049,10.0]
[1680334952545,19.005447,21.068,21.05,17.0]
[1680334952747,20.0,21.067,21.051,10.0]
[1680334952947,20.0,21.067,21.052,17.0]
[1680334953145,20.0,21.067,21.053,10.0]
[1680334953355,20.0,21.067,21.054,17.0]
[1680334953656,20.0,21.067,21.055,10.0]
[1680334955046,20.0,21.068,21.055,10.0]
[1680334955255,10.0,21.067,21.055,10.0]
[1680334955456,20.0,21.066,21.055,10.0]
[1680334957470,20.0,21.066,21.054,17.0]
[1680334957655,10.0,21.065,21.054,17.0]
[1680334957849,20.0,21.064,21.054,17.0]
[1680334958053,20.0,21.064,21.053,10.0]
[1680334958254,20.0,21.064,21.054,17.0]
[1680334961664,10.0,21.065,21.054,17.0]
[1680334961857,20.0,21.064,21.055,10.0]
[1680334963860,20.0,21.064,21.054,111.2931]
[1680334968179,20.0,21.064,21.056,10.0]
[1680334969074,20.0,21.064,21.055,27.0]
[1680334969473,20.0,21.064,21.055,17.0]
[1680334973587,20.0,21.064,21.054,111.2931]
[1680334987596,20.0,21.066,21.054,111.2931]
[1680334987796,10.0,21.065,21.054,111.2931]
[1680334988095,20.0,21.064,21.054,111.2931]
[1680334992710,20.0,21.064,21.055,10.0]
[1680334992909,20.0,21.066,21.056,17.0]
[1680334993109,20.0,21.066,21.057,10.0]
[1680334994415,20.0,21.066,21.055,10.0]
[1680334994616,10.0,21.065,21.055,10.0]
[1680334994802,10.0,21.063,21.054,111.2931]
[1680334994999,20.0,21.062,21.054,111.2931]
[1680334995199,10.0,21.059,21.054,111.2931]
[1680334997114,26.62,21.06,21.054,111.2931]
[1680335017327,14.14062553,21.061,21.054,111.2931]
[1680335017532,21.39,21.06,21.054,111.2931]
[1680335025242,17.0,21.059,21.043,136.3922]
[1680335025437,10.0,21.058,21.043,136.3922]
[1680335025627,18.997,21.056,21.036,26.62]
[1680335025829,10.0,21.049,21.036,26.52595914]
[1680335026130,17.0,21.048,21.036,26.52595914]
[1680335026428,10.0,21.047,21.036,26.52595914]
[1680335026850,10.0,21.045,21.035,10.0]
[1680335028334,17.0,21.046,21.035,10.0]
[1680335035843,17.0,21.046,21.034,117.4313]
[1680335037950,17.0,21.046,21.035,10.0]
[1680335039358,26.91,21.05,21.035,10.0]
[1680335039531,26.91,21.05,21.036,17.0]
[1680335039738,26.91,21.05,21.037,10.0]
[1680335041449,41.46786946,21.05,21.037,10.0]
[1680335045950,26.91,21.05,21.037,10.0]
[1680335046160,19.017176,21.055,21.038,17.0]
[1680335046357,20.0,21.054,21.038,17.0]
[1680335046650,20.0,21.054,21.039,10.0]
[1680335046854,20.0,21.054,21.041,10.0]
[1680335047046,20.0,21.054,21.042,17.0]
[1680335047446,20.0,21.054,21.043,10.0]
[1680335048248,20.0,21.056,21.043,10.0]
[1680335048440,20.0,21.056,21.043,126.6806]
[1680335061543,20.0,21.056,21.044,17.0]
[1680335061742,20.0,21.057,21.045,10.0]
[1680335061943,20.0,21.057,21.047,10.0]
[1680335062360,20.0,21.057,21.048,17.0]
[1680335065257,20.0,21.057,21.047,10.0]
[1680335066462,20.0,21.057,21.045,10.0]
[1680335066664,10.0,21.057,21.046,17.0]
[1680335066851,20.0,21.056,21.046,17.0]
[1680335075970,20.0,21.056,21.044,10.0]
[1680335076174,10.0,21.055,21.043,116.6806]
[1680335076358,20.0,21.054,21.043,116.6806]
[1680335076963,26.91,21.05,21.042,110.1674]
[1680335077164,10.0,21.049,21.035,10.0]
[1680335078362,10.0,21.049,21.038,17.0]
[1680335078763,10.0,21.049,21.035,10.0]
[1680335079171,10.0,21.049,21.037,34.07421731]
[1680335079374,10.0,21.049,21.037,10.0]
[1680335080571,10.0,21.049,21.035,10.0]
[1680335080767,10.0,21.047,21.035,10.0]
[1680335080970,10.0,21.047,21.034,10.0]
[1680335086294,17.0,21.048,21.034,10.0]
[1680335086476,10.0,21.049,21.036,10.0]
[1680335086883,10.0,21.049,21.034,10.0]
[1680335087790,17.0,21.048,21.034,10.0]
[1680335087988,10.0,21.047,21.034,10.0]
[1680335089376,10.0,21.047,21.036,10.0]
[1680335095197,10.0,21.047,21.034,10.0]
[1680335100108,20.0,21.046,21.032,117.6296]
[1680335100291,20.0,21.046,21.029,151.13654766]
[1680335100292,26.91,21.04,21.029,151.13654766]
[1680335100492,17.0,21.039,21.026,118.3397]
[1680335101096,10.0,21.038,21.026,118.3397]
[1680335102221,10.0,21.038,21.027,10.0]
[1680335102619,27.0,21.039,21.027,10.0]
[1680335102802,17.0,21.039,21.027,10.0]
[1680335103217,53.57,21.04,21.027,10.0]
[1680335103520,53.57,21.04,21.028,17.0]
[1680335103521,26.66,21.04,21.028,17.0]
[1680335103716,26.66,21.04,21.029,10.0]
[1680335104716,126.9077,21.045,21.029,10.0]
[1680335104717,10.0,21.045,21.029,10.0]
[1680335104902,10.0,21.043,21.031,10.0]
[1680335105102,20.0,21.042,21.031,10.0]
[1680335105301,20.0,21.042,21.03,17.0]
[1680335105700,20.0,21.042,21.031,10.0]
[1680335109102,26.73,21.04,21.026,118.3397]
[1680335109298,17.0,21.039,21.026,118.3397]
[1680335109805,10.0,21.038,21.026,118.3397]
[1680335112319,10.0,21.038,21.027,10.0]
[1680335112515,10.0,21.038,21.027,9.0]
[1680335115222,10.0,21.038,21.026,118.3397]
[1680335115828,17.0,21.037,21.027,10.0]
[1680335116038,10.0,21.038,21.027,10.0]
[1680335116231,10.0,21.039,21.027,10.0]
[1680335116520,53.64,21.04,21.027,10.0]
[1680335116720,26.91,21.04,21.029,10.0]
[1680335117835,26.91,21.04,21.03,17.0]
[1680335118029,26.91,21.04,21.031,10.0]
[1680335118914,26.91,21.04,21.029,10.0]
[1680335127533,26.91,21.04,21.027,10.0]
[1680335135338,10.0,21.039,21.027,10.0]
[1680335136036,10.0,21.039,21.026,142.24517281]
[1680335136238,10.0,21.039,21.028,10.0]
[1680335139436,26.91,21.04,21.028,10.0]
[1680335140439,26.91,21.04,21.03,10.0]
[1680335143642,40.98962038,21.04,21.03,10.0]
[1680335149356,20.0,21.042,21.032,10.0]
[1680335149930,20.0,21.047,21.033,17.0]
[1680335150346,20.0,21.047,21.034,10.0]
[1680335150548,20.0,21.047,21.035,17.0]
[1680335151849,10.0,21.046,21.035,17.0]
[1680335152056,20.0,21.045,21.035,17.0]
[1680335161857,20.0,21.045,21.034,24.12646185]
[1680335162057,20.0,21.045,21.032,112.1223]
[1680335162359,26.91,21.04,21.024,10.0]
[1680335163050,10.0,21.039,21.024,10.0]
[1680335164566,10.0,21.039,21.029,10.0]
[1680335164971,10.0,21.039,21.024,10.0]
[1680335165148,17.0,21.038,21.02,115.7308]
[1680335165457,10.0,21.037,21.022,20.0]
[1680335165658,17.0,21.036,21.022,20.0]
[1680335166364,10.0,21.035,21.023,10.0]
[1680335168448,10.0,21.035,21.022,30.0]
[1680335169869,10.0,21.035,21.023,10.0]
[1680335180374,17.0,21.036,21.023,10.0]
[1680335180561,78.26996765,21.04,21.023,10.0]
[1680335180755,41.35996765,21.04,21.024,17.0]
[1680335180964,26.91,21.04,21.025,10.0]
[1680335181164,26.91,21.04,21.026,17.0]
[1680335181564,26.91,21.04,21.027,10.0]
[1680335181971,26.91,21.04,21.029,19.02]
[1680335182173,26.91,21.04,21.03,10.0]
[1680335183666,26.91,21.04,21.031,17.0]
[1680335183867,26.91,21.04,21.032,10.0]
[1680335184059,26.91,21.04,21.033,17.0]
[1680335186981,63.57,21.05,21.034,10.0]
[1680335187180,20.0,21.047,21.035,17.0]
[1680335187377,26.66,21.05,21.035,17.0]
[1680335188072,26.66,21.05,21.036,10.0]
[1680335188268,26.66,21.05,21.037,17.0]
[1680335188467,26.66,21.05,21.038,10.0]
[1680335188670,26.66,21.05,21.039,17.0]
[1680335190469,26.66,21.05,21.04,10.0]
[1680335196491,26.66,21.05,21.04,10.0]
[1680335196677,26.66,21.05,21.041,17.0]
[1680335197177,10.0,21.053,21.041,17.0]
[1680335197380,10.0,21.051,21.041,17.0]
[1680335198075,10.0,21.053,21.041,17.0]
[1680335198275,20.0,21.052,21.041,17.0]
[1680335205510,10.0,21.051,21.041,17.0]
[1680335205708,10.0,21.051,21.04,10.0]
[1680335205905,10.0,21.051,21.041,17.0]
[1680335209699,10.0,21.051,21.04,17.0]
[1680335210614,26.88,21.05,21.04,17.0]
[1680335210813,10.0,21.049,21.04,17.0]
[1680335211201,26.88,21.05,21.04,17.0]
[1680335222425,19.014821,21.058,21.041,20.0]
[1680335222725,19.014821,21.058,21.043,10.0]
[1680335223125,19.014821,21.058,21.044,17.0]
[1680335223312,19.014821,21.058,21.045,10.0]
[1680335223508,19.014821,21.058,21.047,10.0]
[1680335223924,19.014821,21.058,21.048,17.0]
[1680335224610,19.014821,21.058,21.049,10.0]
[1680335224930,19.014821,21.058,21.05,37.0]
[1680335225111,10.0,21.069,21.051,10.0]
[1680335225319,26.88,21.07,21.052,17.0]
[1680335225613,26.88,21.07,21.054,10.0]
[1680335225821,26.88,21.07,21.055,17.0]
[1680335226517,10.0,21.069,21.056,10.0]
[1680335226714,10.0,21.069,21.057,17.0]
[1680335228530,10.0,21.069,21.058,10.0]
[1680335228730,10.0,21.069,21.059,17.0]
[1680335229129,26.63,21.07,21.059,17.0]
[1680335229824,10.0,21.069,21.054,116.4275]
[1680335230028,20.0,21.068,21.055,17.0]
[1680335230334,10.0,21.069,21.055,17.0]
[1680335231128,10.0,21.069,21.056,10.0]
[1680335231325,10.0,21.069,21.057,17.0]
[1680335233324,53.51,21.07,21.058,10.0]
[1680335233517,26.88,21.07,21.059,17.0]
[1680335234534,10.0,21.069,21.059,17.0]
[1680335236514,10.0,21.069,21.053,10.0]
[1680335237922,10.0,21.069,21.056,10.0]
[1680335240217,10.0,21.069,21.055,10.0]